bitfinex-derivatives/quotes_SOLF0:USTF0_20241120
["timestamp","ask_amount","ask_price","bid_price","bid_amount"]
[1732084118833,8.77264177,235.47,235.39,6.64190702]
[1732084119235,2.1213,235.45,235.4,2.1218]
[1732084122337,2.22,235.48,235.42,2.1216]
[1732084122836,4.3411,235.48,235.42,2.1216]
[1732084123033,2.22,235.48,235.42,2.1216]
[1732084124331,4.341,235.48,235.42,2.1216]
[1732084129145,2.22,235.48,235.43,6.64190702]
[1732084129441,3.2247,235.57,235.47,6.64190702]
[1732084129442,2.22,235.49,235.47,6.64190702]
[1732084129646,2.22,235.48,235.47,6.64190702]
[1732084130343,2.22,235.48,235.37,3.2991]
[1732084130542,2.22,235.48,235.41,6.64190702]
[1732084130846,2.22,235.48,235.43,6.64190702]
[1732084132146,2.22,235.48,235.41,6.64190702]
[1732084132749,4.3411,235.48,235.43,2.1215]
[1732084133147,4.3411,235.48,235.41,6.64190702]
[1732084134253,4.3411,235.48,235.42,2.1216]
[1732084134654,2.1213,235.45,235.37,1.6712]
[1732084135047,2.1213,235.45,235.38,6.64190702]
[1732084135350,6.64190702,235.46,235.41,2.1217]
[1732084137357,2.1212,235.46,235.41,2.1217]
[1732084138453,8.76310702,235.46,235.41,2.1217]
[1732084138861,2.1212,235.46,235.41,2.1217]
[1732084139260,2.1212,235.46,235.41,8.76360702]
[1732084139862,2.1212,235.46,235.41,2.1217]
[1732084140057,2.1212,235.46,235.41,8.76360702]
[1732084141051,2.1212,235.46,235.41,2.1217]
[1732084146762,2.1212,235.46,235.41,8.76360702]
[1732084159779,2.1213,235.45,235.41,8.76360702]
[1732084162478,2.1212,235.46,235.41,8.76360702]
[1732084163182,2.22,235.45,235.41,8.76360702]
[1732084165683,2.1215,235.43,235.38,2.1219]
[1732084165889,6.64190702,235.42,235.31,1.6527]
[1732084166189,6.64190702,235.42,235.34,6.64190702]
[1732084166489,2.1218,235.4,235.34,8.76410702]
[1732084166784,2.22,235.39,235.34,2.1222]
[1732084166984,2.22,235.39,235.33,6.64190702]
[1732084167182,4.3419,235.39,235.33,8.76430702]
[1732084167586,8.76390702,235.38,235.33,2.1224]
[1732084168392,2.1222,235.35,235.3,6.64190702]
[1732084169081,2.1222,235.35,235.25,1.5763]
[1732084169286,2.1222,235.35,235.28,8.76470702]
[1732084169287,2.1223,235.34,235.28,8.76470702]
[1732084169487,2.22,235.33,235.28,8.76470702]
[1732084171495,2.22,235.33,235.27,6.64190702]
[1732084173294,2.1225,235.32,235.27,6.64190702]
[1732084175794,2.1226,235.31,235.27,6.64190702]
[1732084176595,2.1225,235.32,235.27,6.64190702]
[1732084177796,2.22,235.33,235.31,6.64190702]
[1732084179289,2.22,235.33,235.32,2.1225]
[1732084180392,30.58,235.41,235.36,2.1221]
[1732084180695,30.58,235.41,235.38,6.64190702]
[1732084180894,2.22,235.4,235.38,6.64190702]
[1732084181190,2.22,235.39,235.38,6.64190702]
[1732084182198,4.3419,235.39,235.33,6.64190702]
[1732084183097,4.3419,235.39,235.33,8.76430702]
[1732084183496,2.22,235.39,235.33,6.64190702]
[1732084183692,2.1221,235.37,235.33,6.64190702]
[1732084183892,2.22,235.39,235.33,6.64190702]
[1732084184297,2.122,235.38,235.33,6.64190702]
[1732084190406,2.22,235.39,235.33,6.64190702]
[1732084191000,2.22,235.39,235.33,8.76430702]
[1732084191205,2.22,235.39,235.33,6.64190702]
[1732084191405,6.64190702,235.38,235.29,8.76460702]
[1732084191600,6.64190702,235.36,235.29,8.76460702]
[1732084191801,2.12888059,235.35,235.29,8.76460702]
[1732084192109,4.25108059,235.35,235.3,2.1227]
[1732084192609,6.64190702,235.38,235.31,6.64190702]
[1732084193311,2.1222,235.35,235.31,8.76450702]
[1732084193805,2.1222,235.35,235.31,6.64190702]
[1732084194202,2.1222,235.35,235.3,2.1227]
[1732084194408,6.64190702,235.38,235.3,2.1227]
[1732084195304,2.1222,235.35,235.3,2.1227]
[1732084196011,2.1222,235.35,235.31,8.76450702]
[1732084198314,2.1222,235.35,235.31,6.64190702]
[1732084199110,2.1222,235.35,235.31,8.76440702]
[1732084200807,2.1221,235.36,235.31,8.76440702]
[1732084201404,8.86190702,235.39,235.31,8.76440702]
[1732084201604,2.1222,235.35,235.31,8.76440702]
[1732084205010,6.64190702,235.33,235.26,6.64190702]
[1732084205208,2.2,235.32,235.26,6.64190702]
[1732084205404,4.3225,235.32,235.26,2.123]
[1732084205603,4.3225,235.32,235.24,6.64190702]
[1732084205604,6.64190702,235.31,235.24,6.64190702]
[1732084205808,6.64190702,235.31,235.2,1.699]
[1732084206108,6.64190702,235.31,235.23,6.64190702]
[1732084207007,2.2,235.3,235.29,6.64190702]
[1732084208209,2.2,235.3,235.29,8.76470702]
[1732084208615,2.2,235.31,235.29,6.64190702]
[1732084208908,2.2,235.32,235.3,6.64190702]
[1732084209107,2.2,235.32,235.31,6.64190702]
[1732084210206,2.2,235.32,235.31,8.76440702]
[1732084212023,30.58,235.41,235.31,6.64190702]
[1732084212215,2.2,235.4,235.38,6.64190702]
[1732084213508,30.58,235.41,235.38,8.76380702]
[1732084213714,2.2,235.4,235.38,8.76380702]
[1732084213913,2.2,235.4,235.38,6.64190702]
[1732084216313,30.58,235.41,235.39,2.1219]
[1732084216516,35.6576,235.55,235.4,6.64190702]
[1732084216723,2.2,235.54,235.47,6.64190702]
[1732084216916,2.2,235.53,235.49,6.64190702]
[1732084217615,30.58,235.55,235.51,6.64190702]
[1732084217816,4.8202,235.63,235.53,6.64190702]
[1732084217817,2.2,235.54,235.53,6.64190702]
[1732084218320,2.2,235.54,235.53,8.76250702]
[1732084218519,2.2,235.54,235.53,2.1206]
[1732084218817,2.2,235.54,235.53,8.76250702]
[1732084222222,2.2,235.54,235.51,8.76270702]
[1732084222821,2.1199,235.61,235.53,8.76250702]
[1732084223029,2.2,235.6,235.53,8.76250702]
[1732084223833,2.1201,235.59,235.53,6.64190702]
[1732084226627,6.64190702,235.58,235.4,3.2915]
[1732084226829,2.1204,235.56,235.49,6.64190702]
[1732084227837,2.1205,235.54,235.47,6.64190702]
[1732084228036,2.2,235.53,235.47,6.64190702]
[1732084228435,2.2,235.53,235.39,1.6838]
[1732084228436,2.1211,235.48,235.39,1.6838]
[1732084228633,1.5976,235.58,235.44,6.64190702]
[1732084228634,2.2,235.47,235.44,6.64190702]
[1732084228835,1.0,235.52,235.39,1.6838]
[1732084229132,1.5976,235.58,235.51,6.64190702]
[1732084229333,240.19474955,235.81,235.41,2.2]
[1732084229535,2.1199,235.62,235.57,6.64190702]
[1732084229742,2.1199,235.62,235.55,6.64190702]
[1732084229743,2.2,235.61,235.55,6.64190702]
[1732084230442,2.12,235.6,235.53,6.64190702]
[1732084231334,2.1201,235.59,235.53,8.76250702]
[1732084232141,4.3199,235.61,235.54,2.1204]
[1732084232734,2.2,235.61,235.57,6.64190702]
[1732084233536,2.2,235.6,235.57,6.64190702]
[1732084234237,2.2,235.6,235.57,8.76210702]
[1732084238351,2.28,235.59,235.57,8.76210702]
[1732084240946,2.28,235.59,235.55,8.76220702]
[1732084241149,2.28,235.59,235.4,7.71369466]
[1732084241343,2.28,235.59,235.52,6.64190702]
[1732084241643,2.28,235.59,235.54,6.64190702]
[1732084242450,4.4001,235.59,235.54,6.64190702]
[1732084243147,2.1202,235.58,235.54,6.64190702]
[1732084243642,2.1202,235.58,235.52,2.1207]
[1732084243643,2.1203,235.57,235.52,6.64190702]
[1732084244347,8.92190702,235.59,235.52,8.76260702]
[1732084244743,2.28,235.59,235.52,8.76260702]
[1732084245145,6.64190702,235.57,235.49,2.1209]
[1732084245443,6.64190702,235.57,235.49,8.76280702]
[1732084245944,2.1204,235.55,235.5,2.1209]
[1732084246746,6.64190702,235.57,235.49,6.64190702]
[1732084246947,2.1206,235.53,235.47,8.76300702]
[1732084247146,2.28,235.52,235.47,8.76300702]
[1732084247344,2.28,235.52,235.45,6.64190702]
[1732084247747,2.1208,235.51,235.46,2.1211]
[1732084247948,2.1208,235.51,235.43,6.64190702]
[1732084247949,6.64190702,235.51,235.43,6.64190702]
[1732084249344,2.121,235.49,235.43,8.76340702]
[1732084249646,2.121,235.49,235.43,6.64190702]
[1732084250151,2.1212,235.47,235.43,6.64190702]
[1732084250354,2.28,235.46,235.41,6.64190702]
[1732084251247,2.1214,235.44,235.41,6.64190702]
[1732084251451,2.28,235.46,235.41,6.64190702]
[1732084252851,2.1213,235.45,235.41,6.64190702]
[1732084254750,2.28,235.46,235.41,6.64190702]
[1732084254952,4.4012,235.46,235.41,6.64190702]
[1732084255349,2.28,235.46,235.41,6.64190702]
[1732084255544,2.28,235.46,235.33,1.7196]
[1732084255545,2.10114722,235.52,235.45,6.64190702]
[1732084255750,2.28,235.51,235.45,6.64190702]
[1732084255950,4.4443726,235.51,235.45,6.64190702]
[1732084257060,2.121,235.49,235.43,6.64190702]
[1732084258053,2.1211,235.48,235.43,8.76330702]
[1732084258260,2.1211,235.48,235.43,2.1214]
[1732084258461,2.1212,235.47,235.42,2.1216]
[1732084259358,6.64190702,235.49,235.42,2.1216]
[1732084259557,6.64190702,235.49,235.43,2.1215]
[1732084259756,4.4443726,235.51,235.43,2.1215]
[1732084259959,4.4443726,235.51,235.43,6.64190702]
[1732084259960,2.121,235.49,235.43,6.64190702]
[1732084260561,13.20707962,235.51,235.46,2.1212]
[1732084260954,1.6695,235.53,235.45,6.64190702]
[1732084261163,2.28,235.52,235.47,6.64190702]
[1732084261567,2.28,235.52,235.49,6.64190702]
[1732084262359,2.28,235.52,235.49,8.76280702]
[1732084263059,2.28,235.52,235.49,2.1209]
[1732084263263,2.28,235.52,235.48,2.121]
[1732084263862,2.1209,235.5,235.35,15.64330001]
[1732084264068,2.1209,235.5,235.43,6.64190702]
[1732084264465,8.76280702,235.5,235.43,6.64190702]
[1732084265265,8.76280702,235.5,235.45,2.1213]
[1732084267170,2.1209,235.5,235.45,2.1213]
[1732084269563,2.1212,235.47,235.42,2.1216]
[1732084269771,2.22,235.46,235.42,2.1216]
[1732084270067,2.22,235.46,235.43,2.1215]
[1732084270272,2.22,235.46,235.43,6.64190702]
[1732084270671,2.22,235.46,235.43,8.76340702]
[1732084274466,2.22,235.46,235.43,6.64190702]
[1732084274969,2.22,235.46,235.45,6.64190702]
[1732084275371,2.22,235.46,235.45,8.76320702]
[1732084277376,2.22,235.46,235.45,2.1213]
[1732084277576,2.22,235.46,235.43,8.76340702]
[1732084278073,2.22,235.46,235.43,2.1215]
[1732084278278,2.22,235.46,235.43,6.64190702]
[1732084278576,2.22,235.46,235.45,2.1213]
[1732084279476,2.22,235.46,235.43,8.76330702]
[1732084280078,2.22,235.46,235.43,2.1214]
[1732084282274,2.22,235.46,235.42,6.64190702]
[1732084282678,2.1211,235.47,235.42,6.64190702]
[1732084282881,2.22,235.45,235.42,6.64190702]
[1732084284079,2.22,235.45,235.4,6.64190702]
[1732084284376,2.22,235.45,235.33,1.7196]
[1732084284582,2.22,235.45,235.36,6.64190702]
[1732084284872,2.1216,235.42,235.37,2.122]
[1732084285278,6.64190702,235.44,235.36,6.64190702]
[1732084285469,2.1215,235.43,235.38,6.64190702]
[1732084285671,2.22,235.45,235.38,6.64190702]
[1732084286078,2.1216,235.42,235.36,8.76400702]
[1732084286477,2.1219,235.39,235.34,8.76420702]
[1732084286779,2.22,235.38,235.34,6.64190702]
[1732084287370,4.342,235.38,235.34,6.64190702]
[1732084287575,4.342,235.38,235.32,8.35180702]
[1732084287782,2.22,235.38,235.32,1.7099]
[1732084287978,2.22,235.38,235.3,8.76450702]
[1732084287979,2.1221,235.36,235.3,8.76450702]
[1732084288179,8.86190702,235.38,235.24,3.3409]
[1732084288482,2.22,235.38,235.33,6.64190702]
[1732084289776,2.122,235.37,235.33,6.64190702]
[1732084290783,2.122,235.37,235.31,8.76440702]
[1732084290981,2.122,235.37,235.32,2.1225]
[1732084291277,2.122,235.37,235.33,6.64190702]
[1732084291780,3.4448,235.49,235.36,6.64190702]
[1732084291987,2.22,235.48,235.4,6.64190702]
[1732084292485,3.22,235.48,235.4,6.64190702]
[1732084292680,2.1215,235.44,235.4,6.64190702]
[1732084296087,2.1215,235.44,235.37,2.1219]
[1732084296287,2.1215,235.44,235.39,6.64190702]
[1732084296482,3.22,235.48,235.39,6.64190702]
[1732084296882,6.64190702,235.47,235.39,6.64190702]
[1732084297287,2.1215,235.43,235.39,6.64190702]
[1732084297488,2.2,235.42,235.39,6.64190702]
[1732084300290,2.2,235.42,235.38,2.1219]
[1732084300491,4.3216,235.42,235.38,6.64190702]
[1732084301887,2.2,235.42,235.38,8.76380702]
[1732084305698,2.2,235.42,235.4,6.64190702]
[1732084308094,2.2,235.42,235.38,8.76380702]
[1732084308490,2.2,235.42,235.4,6.64190702]
[1732084308697,2.2,235.43,235.4,6.64190702]
[1732084308995,2.2,235.43,235.42,6.64190702]
[1732084310399,2.2,235.43,235.42,8.76350702]
[1732084310594,2.2,235.43,235.32,3.2776]
[1732084310799,2.2,235.43,235.39,6.64190702]
[1732084311300,2.2,235.43,235.36,6.64190702]
[1732084311800,4.3215,235.43,235.36,8.76400702]
[1732084311997,4.3215,235.43,235.36,6.64190702]
[1732084312403,4.3215,235.43,235.38,2.1219]
[1732084314005,2.1218,235.4,235.34,6.64190702]
[1732084314198,6.64190702,235.41,235.32,3.2776]
[1732084314399,6.64190702,235.41,235.33,6.64190702]
[1732084314596,2.1219,235.39,235.33,6.64190702]
[1732084314797,6.64190702,235.41,235.33,6.64190702]
[1732084315406,6.64190702,235.41,235.32,1.6187]
[1732084315607,6.64190702,235.41,235.32,8.26060702]
[1732084315804,6.64190702,235.37,235.31,2.1226]
[1732084316106,4.36240064,235.36,235.31,2.1226]
[1732084316306,2.2,235.36,235.31,2.1226]
[1732084317205,4.3222,235.36,235.31,2.1226]
[1732084317601,14.94,235.36,235.16,2.1239]
[1732084317911,6.64190702,235.25,235.16,8.76580702]
[1732084318213,2.2,235.24,235.16,8.76580702]
[1732084318511,2.2,235.24,235.18,6.64190702]
[1732084319114,2.7485,235.35,235.07,4.9584]
[1732084319115,2.7485,235.35,235.22,6.64190702]
[1732084319300,6.64190702,235.33,235.24,6.64190702]
[1732084319614,2.1226,235.31,235.26,6.64190702]
[1732084320809,2.1226,235.31,235.12,2.2]
[1732084320810,2.1226,235.31,235.24,6.64190702]
[1732084323614,6.64190702,235.33,235.24,6.64190702]
[1732084323802,2.1225,235.32,235.25,2.1231]
[1732084324207,2.2,235.34,235.26,6.64190702]
[1732084326309,2.1224,235.33,235.26,6.64190702]
[1732084327412,2.1224,235.33,235.26,8.76490702]
[1732084328417,2.1224,235.33,235.27,2.1229]
[1732084329209,1.0,235.35,235.32,6.64190702]
[1732084329515,2.2,235.34,235.32,6.64190702]
[1732084330014,1.6942,235.47,235.32,6.64190702]
[1732084330217,2.2,235.39,235.34,6.64190702]
[1732084330818,2.2,235.39,235.35,2.1222]
[1732084331017,2.2,235.39,235.34,6.64190702]
[1732084332017,2.2,235.38,235.34,8.76410702]
[1732084332221,2.2,235.37,235.34,8.76410702]
[1732084332426,2.2,235.37,235.34,6.64190702]
[1732084333423,2.2,235.37,235.16,1.5848]
[1732084333719,2.2,235.37,235.32,6.64190702]
[1732084334119,8.84190702,235.37,235.19,32.83270326]
[1732084334324,2.16819784,235.36,235.28,6.64190702]
[1732084334717,2.16819784,235.36,235.29,2.1227]
[1732084335226,2.16819784,235.36,235.28,6.64190702]
[1732084336226,2.1222,235.36,235.3,6.64190702]
[1732084336527,2.1222,235.35,235.28,2.1228]
[1732084336825,8.84190702,235.37,235.29,6.64190702]
[1732084337324,2.2,235.37,235.33,6.64190702]
[1732084338120,266.53854955,235.54,235.35,6.64190702]
[1732084338121,8.80996132,235.48,235.35,6.64190702]
[1732084338318,8.80996132,235.48,235.25,2.2]
[1732084338319,2.2,235.47,235.4,6.64190702]
[1732084338526,2.1213,235.45,235.39,2.1218]
[1732084338723,2.2,235.47,235.4,6.64190702]
[1732084339528,2.1213,235.45,235.4,8.76360702]
[1732084341026,2.1213,235.45,235.4,6.64190702]
[1732084341426,2.1212,235.46,235.4,8.76360702]
[1732084341721,2.2,235.47,235.4,6.64190702]
[1732084342126,30.58,235.54,235.44,6.64190702]
[1732084342326,30.58,235.54,235.48,6.64190702]
[1732084342727,2.2,235.53,235.48,6.64190702]
[1732084342923,30.58,235.54,235.48,6.64190702]
[1732084343127,4.3207,235.53,235.48,6.64190702]
[1732084344029,4.3207,235.53,235.46,6.64190702]
[1732084344426,2.2,235.53,235.46,6.64190702]
[1732084344631,2.1207,235.52,235.46,8.76310702]
[1732084345029,2.1208,235.51,235.46,6.64190702]
[1732084345436,2.1208,235.51,235.44,6.64190702]
[1732084345734,6.64190702,235.52,235.45,2.1213]
[1732084345935,4.3207,235.53,235.44,6.64190702]
[1732084346129,10.96260702,235.53,235.44,6.64190702]
[1732084346437,2.1207,235.52,235.46,2.1212]
[1732084346829,8.84190702,235.53,235.44,6.64190702]
[1732084347027,2.1209,235.5,235.44,8.76330702]
[1732084347826,2.1209,235.5,235.35,5.0142]
[1732084347827,2.121,235.49,235.42,2.1216]
[1732084348137,2.121,235.49,235.43,6.64190702]
[1732084349931,2.121,235.49,235.43,8.76340702]
[1732084350634,2.121,235.49,235.45,6.64190702]
[1732084351533,2.121,235.49,235.43,8.76340702]
[1732084352134,2.1212,235.47,235.4,8.76360702]
[1732084352334,2.2,235.46,235.4,8.76360702]
[1732084352534,2.2,235.46,235.4,6.64190702]
[1732084353340,2.2,235.46,235.42,8.76350702]
[1732084354136,2.2,235.46,235.44,6.64190702]
[1732084357246,2.2,235.46,235.42,8.76350702]
[1732084358239,2.2,235.46,235.43,2.1214]
[1732084358440,6.64190702,235.51,235.43,2.1214]
[1732084358641,2.22,235.51,235.49,6.64190702]
[1732084359240,6.64190702,235.58,235.49,6.64190702]
[1732084359446,2.22,235.57,235.49,6.64190702]
[1732084359640,2.1205,235.54,235.49,8.76280702]
[1732084359840,2.1205,235.54,235.49,6.64190702]
[1732084360337,2.1206,235.53,235.49,6.64190702]
[1732084360745,2.1206,235.53,235.48,2.121]
[1732084362141,8.72576126,235.56,235.47,6.64190702]
[1732084362339,2.1206,235.54,235.47,6.64190702]
[1732084362948,2.1206,235.54,235.47,8.76300702]
[1732084363146,2.1206,235.54,235.47,6.64190702]
[1732084363345,2.1206,235.53,235.47,6.64190702]
[1732084363546,2.1206,235.53,235.48,2.121]
[1732084363748,2.22,235.52,235.49,6.64190702]
[1732084364150,2.22,235.52,235.48,2.121]
[1732084364451,2.22,235.52,235.45,6.64190702]
[1732084364949,6.64190702,235.5,235.42,6.64190702]
[1732084366050,2.1211,235.48,235.42,8.76350702]
[1732084366443,6.64190702,235.5,235.42,8.76350702]
[1732084366650,2.1212,235.47,235.42,2.1216]
[1732084366958,2.22,235.46,235.37,10.38786435]
[1732084367155,2.22,235.45,235.37,10.38786435]
[1732084368247,2.22,235.45,235.41,2.1216]
[1732084369351,4.3413,235.45,235.37,10.38786435]
[1732084369550,1.7146,235.53,235.4,10.38786435]
[1732084369751,2.22,235.52,235.4,10.38786435]
[1732084370448,2.22,235.52,235.35,5.0142]
[1732084370648,2.22,235.52,235.39,10.38786435]
[1732084371957,2.121,235.49,235.43,2.1215]
[1732084372559,2.1209,235.5,235.42,2.1215]
[1732084372754,2.22,235.52,235.39,10.38786435]
[1732084373258,2.121,235.49,235.44,2.1214]
[1732084374759,2.1211,235.47,235.41,2.1217]
[1732084374961,2.22,235.46,235.39,10.38786435]
[1732084375565,2.22,235.46,235.42,2.1216]
[1732084376761,2.22,235.46,235.39,10.38786435]
[1732084376956,2.1215,235.43,235.35,5.0142]
[1732084377359,2.22,235.46,235.35,5.0142]
[1732084377560,2.1216,235.42,235.37,2.122]
[1732084377857,2.1216,235.42,235.35,5.0142]
[1732084378054,2.1217,235.41,235.36,2.122]
[1732084378260,2.22,235.4,235.36,2.122]
[1732084378664,2.1219,235.39,235.35,5.0142]
[1732084379058,2.22,235.4,235.35,5.0142]
[1732084379459,2.22,235.4,235.34,2.1223]
[1732084379460,4.3418,235.4,235.34,2.1223]
[1732084381059,2.22,235.4,235.27,10.38786435]
[1732084381262,2.22,235.4,235.23,5.0077]
[1732084381469,2.22,235.4,235.28,10.38786435]
[1732084381664,2.22,235.4,235.34,2.1223]
[1732084382366,2.1219,235.39,235.28,10.38786435]
[1732084382866,2.22,235.4,235.28,10.38786435]
[1732084384266,2.1222,235.36,235.3,2.1226]
[1732084385278,2.122,235.38,235.32,2.1225]
[1732084385576,2.22,235.4,235.28,10.38786435]
[1732084386279,2.122,235.38,235.32,2.1225]
[1732084387474,2.1222,235.36,235.29,8.77644461]
[1732084387778,2.2,235.35,235.29,6.65374461]
[1732084388285,2.2,235.35,235.33,6.65374461]
[1732084388784,2.2,235.35,235.33,8.77614461]
[1732084389679,2.2,235.35,235.33,6.65374461]
[1732084391384,2.2,235.35,235.33,8.77614461]
[1732084393479,2.2,235.35,235.31,6.65374461]
[1732084394079,2.2,235.35,235.32,2.1225]
[1732084395284,2.2,235.35,235.33,2.1223]
[1732084395486,2.2,235.35,235.31,6.65374461]
[1732084396398,2.1223,235.34,235.28,2.1228]
[1732084396585,2.1223,235.34,235.28,6.65374461]
[1732084397594,2.1223,235.34,235.26,6.65374461]
[1732084398393,2.1223,235.34,235.28,6.65374461]
[1732084398893,2.1226,235.31,235.26,2.1229]
[1732084399095,2.1226,235.31,235.26,8.77664461]
[1732084399292,8.85374461,235.35,235.26,6.65374461]
[1732084399490,8.85374461,235.35,235.23,5.0077]
[1732084399694,8.85374461,235.35,235.27,6.65374461]
[1732084400393,2.1225,235.32,235.27,6.65374461]
[1732084400786,2.1224,235.34,235.29,8.77644461]
[1732084401392,2.2,235.35,235.29,6.65374461]
[1732084401596,8.80892933,235.41,235.33,6.65374461]
[1732084401786,2.2,235.4,235.33,6.65374461]
[1732084403086,2.122,235.38,235.33,8.77604461]
[1732084403688,2.15518472,235.41,235.35,6.65374461]
[1732084403891,2.2,235.37,235.23,5.0077]
[1732084405194,2.2,235.37,235.36,6.65374461]
[1732084405500,2.2,235.37,235.36,8.77584461]
[1732084405697,2.2,235.37,235.36,6.65374461]
[1732084407300,2.2,235.37,235.36,8.77584461]
[1732084407690,2.2,235.37,235.24,9.65983713]
[1732084407897,2.2,235.37,235.35,6.65374461]
[1732084408099,2.2,235.37,235.23,5.0077]
[1732084408298,2.2,235.37,235.34,8.77594461]
[1732084408494,2.2,235.37,235.34,6.65374461]
[1732084409296,2.2,235.37,235.35,2.1222]
[1732084409495,2.2,235.37,235.34,6.65374461]
[1732084411401,2.2,235.37,235.36,6.65374461]
[1732084412402,2.2,235.37,235.36,8.77584461]
[1732084413002,2.2,235.37,235.36,6.65374461]
[1732084414400,2.2,235.37,235.36,8.77584461]
[1732084415300,2.1214,235.45,235.39,2.1219]
[1732084415505,2.2,235.44,235.4,6.65374461]
[1732084416902,2.2,235.44,235.39,2.1219]
[1732084417295,4.3214,235.44,235.39,2.1219]
[1732084418705,2.2,235.44,235.4,2.1217]
[1732084419507,2.2,235.43,235.4,8.77544461]
[1732084420708,2.2,235.43,235.4,2.1217]
[1732084421710,2.2,235.43,235.39,2.1218]
[1732084422614,2.2,235.43,235.4,2.1218]
[1732084424617,2.2,235.43,235.37,2.122]
[1732084424618,4.3215,235.43,235.37,2.122]
[1732084424914,4.3215,235.43,235.38,6.65374461]
[1732084425713,4.3215,235.43,235.38,8.77564461]
[1732084425913,2.2,235.43,235.38,6.65374461]
[1732084426113,2.1216,235.42,235.37,2.122]
[1732084426316,2.1216,235.42,235.37,8.77574461]
[1732084426718,2.2,235.43,235.38,2.1219]
[1732084427617,2.2,235.43,235.41,6.65374461]
[1732084428419,2.2,235.43,235.39,8.77554461]
[1732084428818,2.2,235.43,235.38,6.65374461]
[1732084429018,4.24696432,235.42,235.38,6.65374461]
[1732084429319,4.24696432,235.42,235.23,5.0077]
[1732084429320,4.24696432,235.42,235.24,15.75986618]
[1732084429615,4.24696432,235.42,235.36,6.65374461]
[1732084430309,4.24696432,235.42,235.37,2.122]
[1732084430511,2.1218,235.4,235.23,5.0077]
[1732084430708,2.1218,235.4,235.34,6.65374461]
[1732084431421,8.85374461,235.43,235.36,6.65374461]
[1732084432012,2.1217,235.41,235.36,6.65374461]
[1732084432214,4.2470327,235.41,235.36,6.65374461]
[1732084432415,2.1217,235.41,235.36,6.65374461]
[1732084433018,2.1217,235.41,235.34,2.1222]
[1732084433019,2.1218,235.4,235.34,2.1222]
[1732084433218,2.1218,235.4,235.35,6.65374461]
[1732084433413,8.78587226,235.41,235.24,4.46089612]
[1732084433618,8.78587226,235.41,235.32,6.65374461]
[1732084434019,2.122,235.38,235.33,2.1224]
[1732084434320,2.2,235.37,235.33,2.1224]
[1732084435219,2.2,235.37,235.32,6.65374461]
[1732084435915,2.2,235.37,235.32,8.77614461]
[1732084437117,2.2,235.37,235.23,5.0077]
[1732084437321,2.2,235.37,235.32,6.65374461]
[1732084437322,2.1221,235.36,235.32,6.65374461]
[1732084437716,2.2,235.37,235.32,6.65374461]
[1732084439222,2.2,235.37,235.32,8.77614461]
[1732084439828,4.3221,235.37,235.32,8.77614461]
[1732084440228,2.2,235.37,235.32,6.65374461]
[1732084440430,4.3221,235.37,235.32,6.65374461]
[1732084440729,8.85374461,235.37,235.29,2.1227]
[1732084440931,2.1222,235.36,235.29,8.77644461]
[1732084442027,2.2,235.37,235.3,2.1226]
[1732084442229,2.2,235.37,235.23,5.0077]
[1732084442429,2.2,235.37,235.3,6.65374461]
[1732084442831,8.85374461,235.37,235.3,6.65374461]
[1732084443334,8.85374461,235.37,235.28,8.77654461]
[1732084443533,8.85374461,235.37,235.28,6.65374461]
[1732084443739,2.1224,235.33,235.28,6.65374461]
[1732084443934,6.65374461,235.35,235.28,6.65374461]
[1732084445230,2.1225,235.32,235.28,6.65374461]
[1732084445432,2.2,235.31,235.28,6.65374461]
[1732084446330,4.3226,235.31,235.28,6.65374461]
[1732084447334,2.1227,235.3,235.23,5.0077]
[1732084447634,8.85374461,235.31,235.22,6.65374461]
[1732084447835,6.65374461,235.27,235.12,5.1536]
[1732084448036,2.1232,235.24,235.18,6.65374461]